Workbook

Sheet المصاريف
B3: ميزانية الحدث لـ [اسم الحدث]
H4: المصروفات
H6: المقدرة | I6: الفعلية
C7: إجمالي المصاريف | H7: =SUM(D14,D22,D28,D35,H14,H22,H27) -> ر.س.‏ 1,145.00 | I7: =SUM(E14,E22,E28,E35,I14,I22,I27) -> ر.س.‏ 395.00
C9: الموقع | D9: المقدرة | E9: الفعلية | G9: المشروبات الطازجة | H9: المقدرة | I9: الفعلية
C10: رسوم القاعة والغرفة | D10: ر.س.‏ 500.00 | E10: ر.س.‏ 250.00 | G10: الطعام
C11: فريق عمل الموقع | D11: ر.س.‏ 400.00 | E11: ر.س.‏ 50.00 | G11: المشروبات
C12: المعدات | G12: المفارش
C13: الطاولات والكراسي | G13: فريق العمل والإكراميات
C14: الإجمالي | D14: =SUBTOTAL(109,الجدول_1[المقدرة]) -> ر.س.‏ 900.00 | E14: =SUBTOTAL(109,الجدول_1[الفعلية]) -> ر.س.‏ 300.00 | G14: الإجمالي | H14: =SUBTOTAL(109,الجدول_5[المقدرة]) -> ر.س.‏ 0.00 | I14: =SUBTOTAL(109,الجدول_5[الفعلية]) -> ر.س.‏ 0.00
C16: الديكورات | D16: المقدرة | E16: الفعلية | G16: البرنامج | H16: المقدرة | I16: الفعلية
C17: الزهور | D17: ر.س.‏ 200.00 | E17: ر.س.‏ 50.00 | G17: المؤدّون
C18: الشموع | G18: المتحدثون
C19: الإضاءة | G19: السفر
C20: البالونات | G20: الفندق
C21: اللوازم من الورق | G21: غير ذلك
C22: الإجمالي | D22: =SUBTOTAL(109,الجدول_2[المقدرة]) -> ر.س.‏ 200.00 | E22: =SUBTOTAL(109,الجدول_2[الفعلية]) -> ر.س.‏ 50.00 | G22: الإجمالي | H22: =SUBTOTAL(109,الجدول_6[المقدرة]) -> ر.س.‏ 0.00 | I22: =SUBTOTAL(109,الجدول_6[الفعلية]) -> ر.س.‏ 0.00
C24: الدعاية | D24: المقدرة | E24: الفعلية | G24: الأسعار | H24: المقدرة | I24: الفعلية
C25: إعداد الرسومات البيانية | D25: ر.س.‏ 45.00 | E25: ر.س.‏ 45.00 | G25: الشرائط/اللوحات التذكارية/الجوائز
C26: النسخ الضوئي/الطباعة | G26: الهدايا
C27: رسوم البريد | G27: الإجمالي | H27: =SUBTOTAL(109,الجدول_7[المقدرة]) -> ر.س.‏ 0.00 | I27: =SUBTOTAL(109,الجدول_7[الفعلية]) -> ر.س.‏ 0.00
C28: الإجمالي | D28: =SUBTOTAL(109,الجدول_3[المقدرة]) -> ر.س.‏ 45.00 | E28: =SUBTOTAL(109,الجدول_3[الفعلية]) -> ر.س.‏ 45.00
C30: متنوعة | D30: المقدرة | E30: الفعلية
C31: الهاتف
C32: وسائل النقل
C33: اللوازم من الأدوات المكتبية
C34: خدمات الفاكس
C35: الإجمالي | D35: =SUBTOTAL(109,الجدول_4[المقدرة]) -> ر.س.‏ 0.00 | E35: =SUBTOTAL(109,الجدول_4[الفعلية]) -> ر.س.‏ 0.00

Sheet الدخل
B3: ميزانية الحدث لـ [اسم الحدث]
F4: الدخل
F6: المقدرة | G6: الفعلية
B7: إجمالي الدخل | F7: =SUM(F14,F21,F28,F36) -> ر.س.‏ 1,936.00 | G7: =SUM(G14,G21,G28,G36) -> ر.س.‏ 1,831.00
B9: عمليات الدخول
B10: المقدرة | C10: الفعلية | F10: المقدرة | G10: الفعلية
B11: 300 | C11: 278 | D11: البالغون @ | E11: ر.س.‏ 5.00 | F11: =B11*E11 -> ر.س.‏ 1,500.00 | G11: =C11*E11 -> ر.س.‏ 1,390.00
B12: 197 | C12: 195 | D12: الأطفال @ | E12: ر.س.‏ 2.00 | F12: =B12*E12 -> ر.س.‏ 394.00 | G12: =C12*E12 -> ر.س.‏ 390.00
B13: 42 | C13: 51 | D13: غير ذلك @ | E13: ر.س.‏ 1.00 | F13: =B13*E13 -> ر.س.‏ 42.00 | G13: =C13*E13 -> ر.س.‏ 51.00
F14: =SUM(F11:F13) -> ر.س.‏ 1,936.00 | G14: =SUM(G11:G13) -> ر.س.‏ 1,831.00
B16: الإعلانات في البرنامج
B17: المقدرة | C17: الفعلية | F17: المقدرة | G17: الفعلية
D18: الأغلفة @ | F18: =B18*E18 -> ر.س.‏ 0.00 | G18: =C18*E18 -> ر.س.‏ 0.00
D19: نصف صفحات @ | F19: =B19*E19 -> ر.س.‏ 0.00 | G19: =C19*E19 -> ر.س.‏ 0.00
D20: ربع صفحات @ | F20: =B20*E20 -> ر.س.‏ 0.00 | G20: =C20*E20 -> ر.س.‏ 0.00
F21: =SUM(F18:F20) -> ر.س.‏ 0.00 | G21: =SUM(G18:G20) -> ر.س.‏ 0.00
B23: البائعون/الموردون
B24: المقدرة | C24: الفعلية | F24: المقدرة | G24: الفعلية
D25: الأكشاك الكبيرة @ | F25: =B25*E25 -> ر.س.‏ 0.00 | G25: =C25*E25 -> ر.س.‏ 0.00
D26: الأكشاك المتوسطة @ | F26: =B26*E26 -> ر.س.‏ 0.00 | G26: =C26*E26 -> ر.س.‏ 0.00
D27: الأكشاك الصغيرة @ | F27: =B27*E27 -> ر.س.‏ 0.00 | G27: =C27*E27 -> ر.س.‏ 0.00
F28: =SUM(F25:F27) -> ر.س.‏ 0.00 | G28: =SUM(G25:G27) -> ر.س.‏ 0.00
B30: بيع العناصر
B31: المقدرة | C31: الفعلية | F31: المقدرة | G31: الفعلية
D32: العناصر @ | F32: =B32*E32 -> ر.س.‏ 0.00 | G32: =C32*E32 -> ر.س.‏ 0.00
D33: العناصر @ | F33: =B33*E33 -> ر.س.‏ 0.00 | G33: =C33*E33 -> ر.س.‏ 0.00
D34: العناصر @ | F34: =B34*E34 -> ر.س.‏ 0.00 | G34: =C34*E34 -> ر.س.‏ 0.00
D35: العناصر @ | F35: =B35*E35 -> ر.س.‏ 0.00 | G35: =C35*E35 -> ر.س.‏ 0.00
F36: =SUM(F32:F35) -> ر.س.‏ 0.00 | G36: =SUM(G32:G35) -> ر.س.‏ 0.00

Sheet ملخص
B3: ميزانية الحدث لـ [اسم الحدث]
D4: ملخص الأرباح والخسائر
F6: المقدرة | G6: الفعلية
B7: إجمالي الدخل | F7: =الدخل!F7 -> ر.س.‏ 1,936.00 | G7: =الدخل!G7 -> ر.س.‏ 1,831.00
B8: إجمالي المصاريف | F8: =المصاريف!H7 -> ر.س.‏ 1,145.00 | G8: =المصاريف!I7 -> ر.س.‏ 395.00
B9: إجمالي الأرباح (أو الخسائر) | F9: =F7-F8 -> ر.س.‏ 791.00 | G9: =G7-G8 -> ر.س.‏ 1,436.00
